Cogmind - Beta 13 @@@ ROGUE MODE // 2024.04.06 @ 11:12:19 Player: Asterix Result: Destroyed by Explosive Trap Performance ------------- Evolutions (0) 0 Regions Visited (1) 200 Robots Destroyed (18) 90 Value Destroyed (340) 340 Prototype IDs (0) 0 Alien Tech Used (0) 0 Bonus (0) 0 TOTAL SCORE: 630 Bonus ------- None Cogmind --------- Core Integrity 0/250 Matter 256/300 Energy 158/160 System Corruption 0% Temperature Cool (1) Movement Treading (240) Ox1 Location -10/Materials Parts ------- > --- POWER (1) -------- Light Nuclear Core > --- PROPULSION (2) --- Light Treads Aluminum Leg > --- UTILITY (2) ------ Large Storage Unit ECM Suite > --- WEAPON (2) ------- Light Assault Rifle Grenade Launcher > --- INVENTORY (15) --- Ion Engine Aluminum Leg Heat Sink Light Assault Rifle Peak State ------------ > --- POWER ------------ Ion Engine > --- PROPULSION ------- Aluminum Leg Aluminum Leg > --- UTILITY ---------- Improved Terrain Scanner ECM Suite > --- WEAPON ----------- Medium Laser Light Assault Rifle > --- INVENTORY -------- (None) [Rating: 9] Favorites ----------- Power Ion Engine Engine Ion Engine Power Core Light Nuclear Core Propulsion Aluminum Leg Treads Light Treads Leg Aluminum Leg Utility ECM Suite Device ECM Suite Storage Large Storage Unit Weapon Light Assault Rifle Energy Gun Medium Laser Ballistic Gun Light Assault Rifle Launcher Grenade Launcher Build | -11 -10 ------- Run | Yrd Mat Slots Evolved . | . . Power . | . . Propulsion . | . . Utility . | . . Weapon . | . . Parts Attached 16 | 7 9 Power 3 | 2 1 Engine 2 | 2 . Core 1 | . 1 Reactor . | . . Propulsion 3 | 2 1 Treads 1 | . 1 Leg 2 | 2 . Wheel . | . . Hover . | . . Flight . | . . Utility 5 | 1 4 Device 2 | 1 1 Storage 3 | . 3 Processor . | . . Hackware . | . . Protection . | . . Artifact . | . . Weapon 5 | 2 3 Energy Gun 2 | 1 1 Energy Cannon . | . . Ballistic Gun 2 | 1 1 Ballistic Cannon . | . . Launcher 1 | . 1 Special Weapon . | . . Impact Weapon . | . . Slashing Weapon . | . . Piercing Weapon . | . . Special Melee Weapon . | . . Unidentified Prototypes . | . . Parts Lost . | . . Power . | . . Propulsion . | . . Utility . | . . Weapon . | . . Highest Loss Streak . | . . To Critical Strikes . | . . Average Slot Usage (%) 99 | . 99 Engine 7 | . 7 Core 6 | . 6 Treads 11 | . 11 Leg 16 | . 16 Device 14 | . 14 Storage 12 | . 12 Energy Gun 11 | . 11 Ballistic Gun 14 | . 14 Launcher 1 | . 1 Naked Turns . | . . Heaviest Build 31 | 9 31 Greatest Support 20 | 20 20 Greatest Overweight (x) 1 | . 1 Average Overweight (x) . | . . Largest Inventory Capacity 25 | 5 25 Average Capacity 10 | 5 13 Most Carried 5 | 2 5 Average Carried 1 | . 2 Final Capacity 15 | 5 15 Final Carried 4 | . 4 Class Distribution -------------------- 100% | Mutant Dominant Class ---------------- Mutant | -10/Materials Resources | -11 -10 ----------- Run | Yrd Mat Matter Collected 382 | 280 102 Remotely . | . . Salvage Created 493 | 152 341 Parts 42 | 16 26 Haulers Intercepted . | . . Recyclers Shooed . | . . Parts Field Recycled . | . . Retrieved Matter . | . . Parts Self-Destructed . | . . Prevented . | . . Kills | -11 -10 ------- Run | Yrd Mat Combat Hostiles Destroyed 13 | 1 12 Guns 13 | 1 12 Classes Destroyed 4 | 3 1 Worker 1 | 1 . Tunneler 4 | 4 . Swarmer 6 | . 6 Grunt 7 | 1 6 Best Kill Streak 3 | 3 3 Combat Bots Only 3 | 1 3 Max Kills in Single Turn 2 | 1 2 Gunslinging 1 | . 1 Exploded . | . . Melee . | . . Uniques/NPCs Destroyed . | . . Combat | -11 -10 -------- Run | Yrd Mat Hostile Shots Fired 83 | 5 78 Missed 23 | 3 20 Damage Taken 663 | 23 640 Core 257 | 12 245 Absorbed by Shields . | . . Core Remaining (%) 95 | 95 . Volleys Fired 75 | 21 54 Largest 2 | 2 2 Hottest 70 | 70 70 Shots Fired 118 | 31 87 Gun 118 | 31 87 Cannon . | . . Launcher . | . . Special . | . . Kinetic 73 | 10 63 Thermal 45 | 21 24 Explosive . | . . Electromagnetic . | . . Robot Hit Streak 10 | 8 10 Robot Miss Streak 6 | 1 6 Penetration Max . | . . Secondary Targets 4 | . 4 Max Gunslinging Chain 1 | . 1 Shots Hit Robots 79 | 21 58 Core Hits 31 | 9 22 Critical Kills . | . . Critical Parts Destroyed 1 | 1 . Critical Strikes 6 | 4 2 Burn 5 | 3 2 Destroy 1 | 1 . Melee Attacks . | . . Impact . | . . Slashing . | . . Piercing . | . . Sneak Attacks . | . . Combat Hostiles . | . . Follow-up Attacks . | . . Damage Inflicted 788 | 218 570 Guns 780 | 218 562 Cannons . | . . Explosions . | . . Melee . | . . Ramming 8 | . 8 Kinetic 395 | 57 338 Thermal 385 | 161 224 Explosive . | . . Electromagnetic . | . . Impact . | . . Slashing . | . . Piercing . | . . Highest Corruption . | . . Average Corruption . | . . Corruption Purged . | . . Corruption Blocked . | . . Overload Shots . | . . Overflow Damage . | . . Projectiles . | . . Explosions . | . . Melee . | . . Knockbacks . | . . Impact . | . . Kinetic . | . . Secondary . | . . Self-Inflicted Damage . | . . Shots . | . . Rammed 2 | . 2 Targets Rammed 2 | . 2 Kicked . | . . Crushed . | . . Highest Temperature 172 | 60 172 Average Temperature 44 | 24 56 Received Heat Transfer 243 | 12 231 Siege Activations . | . . Robots Corrupted . | . . Combat Hostiles . | . . Parts Fried . | . . Impact Corruptions . | . . Robots Melted . | . . Combat Hostiles . | . . Parts Melted 6 | 2 4 Heat Transferred 1517 | 703 814 Parts Sabotaged . | . . Parts Stolen . | . . Parts Stripped . | . . Power Chain Reactions . | . . Alert | -11 -10 ------- Run | Yrd Mat Peak Influence 303 | 46 303 Initial 29 | . 29 Average 94 | 29 128 Maximum Alert Level 1 | . 1 Low Security (%) 84 | 100 76 Level 1 15 | . 23 Level 2 . | . . Level 3 . | . . Level 4 . | . . Level 5 . | . . High Security . | . . Max Security . | . . Squads Dispatched 2 | . 2 Investigation 1 | . 1 Extermination . | . . Reinforcement 1 | . 1 Assault . | . . Garrison . | . . Intercept . | . . Searches Triggered . | . . Construction Impeded . | . . Haulers Reinforced . | . . Active Scanning Responses . | . . Cargo Convoy Interrupts . | . . Stealth | -11 -10 --------- Run | Yrd Mat Distress Signals . | . . Communications Jammed . | . . Distress Signals . | . . Times Spotted 18 | 1 17 Peak Tracking Total 4 | 1 4 Tactical Retreats 3 | . 3 Traps | -11 -10 ------- Run | Yrd Mat Traps Triggered 1 | . 1 Indirectly . | . . Trap Hack Attempts . | . . Triggered . | . . Disarmed . | . . Reprogrammed . | . . Reused . | . . Traps Extracted . | . . Installed . | . . Triggered . | . . Machines | -11 -10 ---------- Run | Yrd Mat Machines Disabled . | . . Max in Single Turn . | . . Machines Repaired . | . . Machines Dismantled . | . . Machines Sabotaged . | . . Overloaded Fab Kills . | . . Hacking | -11 -10 --------- Run | Yrd Mat Machines Accessed 2 | . 2 Terminals 2 | . 2 Fabricators . | . . Repair Stations . | . . Recycling Units . | . . Scanalyzers . | . . Garrison Access . | . . Total Hacks 9 | . 9 Successful 5 | . 5 Failed 4 | . 4 Catastrophic 3 | . 3 Database Lockouts . | . . Manual . | . . Terminals 9 | . 9 Fabricators . | . . Repair Stations . | . . Recycling Units . | . . Scanalyzers . | . . Garrison Access . | . . Terminal Hacks 5 | . 5 Record 1 | . 1 Dispatch Records 1 | . 1 Security Status 1 | . 1 Assault Status 1 | . 1 Registered Components 1 | . 1 Fabricator Hacks . | . . Repair Station Hacks . | . . Recycling Unit Hacks . | . . Scanalyzer . | . . Garrison Access Hacks . | . . Unauthorized Hacks . | . . Terminals . | . . Fabricators . | . . Repair Stations . | . . Recycling Units . | . . Scanalyzers . | . . Garrison Access . | . . Data Cores Recovered . | . . Used . | . . Hacking Detections 2 | . 2 Full Trace Events 2 | . 2 Feedback Events . | . . Feedback Blocked . | . . Robot Schematics Acquired . | . . Robots Built . | . . Authchips . | . . Time . | . . Total Robot Build Rating . | . . Part Schematics Acquired . | . . Parts Built . | . . Authchips . | . . Time . | . . Total Part Build Rating . | . . Parts Repaired . | . . Time . | . . Parts Recycled . | . . Recycled Matter . | . . Retrieved Matter . | . . Retrieved Components . | . . Parts Scanalyzed . | . . Part Schematics Acquired . | . . Parts Damaged . | . . Bothacking | -11 -10 ------------ Run | Yrd Mat Used RIF Installer . | . . Robots Hacked . | . . Non-combat . | . . Combat . | . . Robot Hacks Applied . | . . Relay Couplers Released . | . . Fabnet Peak Effective % . | . . Robots Rewired . | . . Allies Hacked . | . . Hacks Repelled . | . . Allies | -11 -10 -------- Run | Yrd Mat Total Allies . | . . Largest Group . | . . Highest-Rated Group . | . . Highest-Rated Ally . | . . Total Orders . | . . Ally Attacks . | . . Total Damage . | . . Kills . | . . Allies Corrupted . | . . Allies Melted . | . . Intel | -11 -10 ------- Run | Yrd Mat Robot Analysis Total . | . . Derelict Logs Recovered . | . . Drone Launches . | . . Drone Recoveries . | . . Exploration | -11 -10 ------------- Run | Yrd Mat Turns Passed 1015 | 355 660 Spaces Moved 493 | 253 240 Core 18 | 18 . Treads 165 | . 165 Legs 310 | 235 75 Wheels . | . . Hover . | . . Flight . | . . Fastest Speed 50 | 50 120 Average Speed 160 | 115 208 Slowest Speed 240 | 120 240 Overloaded Moves . | . . Propulsion Burnouts . | . . Robots Hopped . | . . Cave-ins Triggered . | . . Exploration Rate (%) 25 | 8 43 Regions Visited 1 Branch Regions . Pre-discovered Areas . | . . Known Exits Taken . | . . Unknown Exits Taken 1 | 1 . Scrap Searched . | . . Spaces Dug . | . . Terrain Destroyed . | . . Melee . | . . Projectile . | . . AOE . | . . Terrain Rammed . | . . Walls Destroyed . | . . Machines Disabled . | . . Actions | -11 -10 --------- Run | Yrd Mat Total 615 | 288 327 Wait 3 | . 3 Move 492 | 252 240 Hop . | . . Pick Up 18 | 7 11 Fast Attach . | . . Attach 14 | 7 7 Detach 2 | . 2 Swap 2 | . 2 Drop 7 | 1 6 Fire 75 | 21 54 Melee . | . . Ram . | . . Kick . | . . Crush 2 | . 2 Escape Stasis . | . . Rewire . | . . Trap . | . . Miscellaneous . | . . Route ------- -11/Scrapyard -10/Materials History --------- Turn | Location | Event 2 | -11/Scrapyard | Met Revision 17 57 | -11/Scrapyard | Discovered new exit (range 8) 356 | -11/Scrapyard | Entered Materials 357 | -10/Materials | Build established: Mutant 685 | -10/Materials | Core integrity fell below 50% 988 | -10/Materials | Core integrity fell below 20% 1016 | -10/Materials | Destroyed by Explosive Trap Last Messages --------------- 2x Transport >>Query(Recycling Unit) Deconstruction apparatus for breaking down old components delivered by Recycler class robots. Condensed matter is contained within the unit until it reaches a certain quota, at which point it is transferred to the nearest [DSF]. ALERT: Suspicious activity at Terminal M005. Dispatching Investigation squad. Slammed into R-06 Scavenger. K-01 Serf cleans the Processing Tank. Acquired Grenade Launcher. Dropped Med. Laser. Slammed into K-01 Serf. ALERT: Hostiles spotted, dispatching reinforcements to Terminal M003. G-34 Mercenary destroyed. R-06 Scavenger collects Sml. Laser. Triggered Explosive Trap. An explosion rips through the floor. Map ----- +----------------------------------------------------+ | ###### # # #???????????????????????? | | + # #???????????????????????? | | # "" !# #???????????????????????? | | """ # "T # #???????????????????????? | | """ # "" # #???????????????????????? | | """ # # #???????????????????????? | | """ ####### #???????????????????????? | | """ ####### ################ ????? | | ???? | | T ????? | | ???? | | ## ###############/########??????????? | | ?# #??????????# ! #?????????????? | | ?#^ #??????????# #?????????????? | | +??????????# #?????????????? | | # #??????????# #?????????????? | | ## #??????????# #?????????????? | | ? ??????????# [ #?????????????? | | ? ????????????# #?????????????? | | ! ?????????????# #?????????????? | | " ?????????????# [ #?????????????? | | ????????????????########+#?????????????? | | ???????????????????????# #?????????????? | | ????????????????######## ###???????????? | | ????????????????# *% ^#???????????? | | ????????????????# ==r @^#???????????? | | ????????????????# !%* ^ #???????????? | | ????????????????# ######+#???????????? | | ????????????????# #??????????????????? | | ????????????????# #??????????????????? | | ????????????????# #??????????????????? | | ???????????????? #??????????????????? | | ??????????????? #??????????????????? | | ?????????????? #??????????????????? | | ????????????? +??????????????????? | | ???????????? #??????????????????? | | ??????????? #??????????????????? | | ???????????? """ #??????????????????? | | ??????????????"" ???????????????????? | | ???????????????" ???????????????????? | | ???????????????? ???????????????????? | | ???????????????????????????????????????? | | ???????????????????????????????????????? | | ???????????????????????????????????????? | | ???????????????????????????????????????? | | ???????????????????????????????????????? | | ???????????????????????????????????????? | | ???????????????????????????????????????? | | ???????????????????????????????????????? | | ???????????????????????????????????????? | +----------------------------------------------------+ Best States ------------- Heat Dissipation 25 Energy Generation 14 Energy Capacity 250 Matter Stores 300 Matter Capacity 300 Sight Range 16 Terrain Scan Range 16 Terrain Scan Density 10 ECM Strength 1 Evasion (%) 55 Recoil Reduction 1 Item Schematics ----------------- None Robot Schematics ------------------ None Fabricated ------------ Nothing Alien Tech Used ----------------- None Achievements -------------- None Challenges ------------ None Game ------ Seed ImprinterParticlePlatform Manual? 0 Play Time 00:13:47 Cumulative 1.2 hours Start 2024.04.06 @ 11:02:12 End 2024.04.06 @ 11:12:19 Sessions 1 Manual Loads 0 Difficulty Rogue Special Mode None Game No. 2 Rogue 2 Adventurer 0 Explorer 0 Win Type - Total 0 Types 0/0/0/0/0/0/0/0/0 Lore% 0 Gallery% 3 Achievement% 3 Wizard Run 0 Options --------- Layout 1 ASCII 0 Keyboard 0 Movement Mouse Keybinds 0 Fullscreen 1 Font 24/Smallcaps Map View 50x35 Zoom Use 0% Tactical HUD 0 Map Filters NONE Filters NONE Steam 1 RUN: 405e3ca3-fa18-4be5-972c-f3556bfd7812